Workbook

Sheet Input
A1: Data Input
A2: 58.46
A3: 18.3
A4: 1162.65
A5: 59.05
A6: 74.05
A7: 55.83
A8: 64.95
A9: 60.23
A10: 139.05
A11: 64.95
A12: 39.61
A13: 44.89
A14: 50.79
A15: 61.41
A16: 29.55
A17: 62.59
A18: 77.93
A19: 28.13
A20: 60.23
A21: 47.25
A22: 54.69
A23: 55.51
A24: 60.23
A25: 56.69
A26: 62.59
A27: 52.05
A28: 17.05
A29: 41.63
A30: 64.95
A31: 37.81
A32: 30.97
A33: 12.85
A34: 10.85
A35: 44.61
A36: 30.97
A37: 62.59
A38: 53.15
A39: 57.87
A40: 59.05
A41: 53.15
A42: 41.35
A43: 64.95
A44: 51.97
A45: 67.31
A46: 72.03
A47: 148.85
A48: 72.03
A49: 67.31
A50: 51.89
A51: 401.65
A52: 143.85
A53: 69.67
A54: 10.85
A55: 54.33
A56: 60.23
A57: 69.67
A58: 56.69
A59: 22.77
A60: 57.87
A61: 55.51
A62: 54.33
A63: 48.43
A64: 59.05
A65: 21.77
A66: 22.28
A67: 21.77
A68: 22.05
A69: 18.77
A70: 60.82
A71: 38.45
A72: 40.05
A73: 67.65
A74: 55.65
A75: 15.51
A76: 15.05
A77: 12.05
A78: 12.85
A79: 22.85
A80: 15.17
A81: 13.85
A82: 11.85
A83: 18.01
A84: 21.33
A85: 20.53
A86: 110.63
A87: 92.89
A88: 141.93
A89: 223.89
A90: 110.63
A91: 40.01
A92: 141.85
A93: 40.01
A94: 71.05
A95: 106.05
A96: 63.77
A97: 131.35
A98: 37.05
A99: 35.49
A100: 105.37
A101: 69.67
A102: 57.87
A103: 27.05
A104: 172.61
A105: 50.57
A106: 73.21
A107: 49.61
A108: 31.91
A109: 20.33
A110: 61.41
A111: 63.77
A112: 48.43
A113: 19.49
A114: 12.42
A115: 12.42
A116: 12.05
A117: 14.05
A118: 94.97
A119: 88.55
A120: 60.23
A121: 81.47
A122: 60.23
A123: 60.23
A124: 435.09
A125: 68.09
A126: 24.65
A127: 56.45
A128: 56.45
A129: 56.45
A130: 56.45
A131: 63.77
A132: 16.01
A133: 29.97
A134: 41.35
A135: 59.05
A136: 51.97
A137: 63.77
A138: 21.41
A139: 49.73
A140: 195.89
A141: 217.13
A142: 828.05
A143: 129.13
A144: 25.05
A145: 50.41
A146: 114.33
A147: 42.61
A148: 51.25
A149: 323.05
A150: 43.25
A151: 35.21
A152: 115.25
A153: 15.37
A154: 13.85
A155: 73.77
A156: 94.97
A157: 183.65
A158: 241.05
A159: 166.37
A160: 27.05
A161: 142.93
A162: 88.65
A163: 116.17
A164: 16.05
A165: 62.97
A166: 19.49
A167: 252.65
A168: 115.09
A169: 90.89
A170: 11.93
A171: 100.29
A172: 128.21
A173: 28.89
A174: 42.69
A175: 26.89
A176: 197.04
A177: 63.97
A178: 14.05
A179: 107.69
A180: 53.33
A181: 20.33
A182: 34.21
A183: 32.05
A184: 31.55
A185: 50.45
A186: 36.77
A187: 92.81
A188: 228.11
A189: 239.97
A190: 46.05
A191: 267.61
A192: 140.61
A193: 63.75
A194: 113.09
A195: 110.05
A196: 122.65
A197: 50.05
A198: 65.05
A199: 20.05
A200: 48.05
... 1 more rows

Sheet Tables
A1: Total Obs: | B1: 200 | G1: 1st Digit Summary
A2: Data Input | B2: Conversion | C2: 1st Digit | D2: 2nd Digit | G2: 1 | H2: 2 | I2: 3 | J2: 4 | K2: 5 | L2: 6 | M2: 7 | N2: 8 | O2: 9
A3: 58.46 | B3: =IFERROR(ABS(A3*1000),"-") -> 58460 | C3: =IFERROR(LEFT(B3,1),"-") -> 5 | D3: =IFERROR(LEFT(B3,2)-10*C3,"-") -> 8 | F3: Digit Counts | G3: =COUNTIF(C3:C202,1) -> 56 | H3: =COUNTIF(C3:C202,2) -> 28 | I3: =COUNTIF(C3:C202,3) -> 14 | J3: =COUNTIF(C3:C202,4) -> 20 | K3: =COUNTIF(C3:C202,5) -> 34 | L3: =COUNTIF(C3:C202,6) -> 32 | M3: =COUNTIF(C3:C202,7) -> 7 | N3: =COUNTIF(C3:C202,8) -> 4 | O3: =COUNTIF(C3:C202,9) -> 5
A4: 18.3 | B4: 18300 | C4: 1 | D4: 8 | F4: Sample % | G4: =G3/$B$1 -> 0.28 | H4: 0.14 | I4: 0.07 | J4: 0.1 | K4: 0.17 | L4: 0.16 | M4: 0.035 | N4: 0.02 | O4: 0.025
A5: 1162.65 | B5: 1162650 | C5: 1 | D5: 1 | F5: Benford % | G5: 0.3010299957 | H5: 0.1760912591 | I5: 0.1249387366 | J5: 0.09691001301 | K5: 0.07918124605 | L5: 0.06694678963 | M5: 0.05799194698 | N5: 0.05115252245 | O5: 0.04575749056
A6: 59.05 | B6: 59050 | C6: 5 | D6: 9 | F6: Absolute Deviation | G6: =ABS(G4-G5) -> 0.02102999566 | H6: 0.03609125906 | I6: 0.05493873661 | J6: 0.003089986992 | K6: 0.09081875395 | L6: 0.09305321037 | M6: 0.02299194698 | N6: 0.03115252245 | O6: 0.02075749056
A7: 74.05 | B7: 74050 | C7: 7 | D7: 4 | F7: Mean Absolute Deviation | G7: =AVERAGE(G6:O6) -> 0.04154710029
A8: 55.83 | B8: 55830 | C8: 5 | D8: 5 | F8: Standard Deviation | G8: =(G5*(1-G5)/B1)^(1/2) -> 0.0324353925 | H8: =(H5*(1-H5)/B1)^(1/2) -> 0.02693354113 | I8: =(I5*(1-I5)/B1)^(1/2) -> 0.02338044575 | J8: =(J5*(1-J5)/B1)^(1/2) -> 0.02091870722 | K8: =(K5*(1-K5)/B1)^(1/2) -> 0.0190933989 | L8: =(L5*(1-L5)/B1)^(1/2) -> 0.01767270735 | M8: =(M5*(1-M5)/B1)^(1/2) -> 0.01652708097 | N8: =(N5*(1-N5)/B1)^(1/2) -> 0.01557818056 | O8: =(O5*(1-O5)/B1)^(1/2) -> 0.01477561211
A9: 64.95 | B9: 64950 | C9: 6 | D9: 4 | F9: Z-Statistic | G9: =(G6-1/(2*B1))/G8 -> 0.571289392 | H9: =(H6-1/(2*B1))/H8 -> 1.24719059 | I9: =(I6-1/(2*B1))/I8 -> 2.242845888 | J9: =(J6-1/(2*B1))/J8 -> 0.02820379795 | K9: =(K6-1/(2*B1))/K8 -> 4.625617178 | L9: =(L6-1/(2*B1))/L8 -> 5.123901426 | M9: =(M6-1/(2*B1))/M8 -> 1.239901167 | N9: =(N6-1/(2*B1))/N8 -> 1.839272715 | O9: =(O6-1/(2*B1))/O8 -> 1.23565037
A10: 60.23 | B10: 60230 | C10: 6 | D10: 0 | F10: Chi-Square Test | G10: 60.8267633
A11: 139.05 | B11: 139050 | C11: 1 | D11: 3 | F11: P-Value | G11: =(1-_xlfn.NORM.S.DIST(G9,TRUE))*2 -> 0.5678034912 | H11: 0.2123276224 | I11: 0.02490675421 | J11: 0.9774996081 | K11: 3.73484579e-06 | L11: 2.99277487e-07 | M11: 0.2150119522 | N11: 0.06587508414 | O11: 0.2165885531
A12: 64.95 | B12: 64950 | C12: 6 | D12: 4 | G12: 2nd Digit Summary
A13: 39.61 | B13: 39610 | C13: 3 | D13: 9 | G13: 0 | H13: 1 | I13: 2 | J13: 3 | K13: 4 | L13: 5 | M13: 6 | N13: 7 | O13: 8 | P13: 9
A14: 44.89 | B14: 44890 | C14: 4 | D14: 4 | F14: Digit Counts | G14: =COUNTIF(D3:D202,0) -> 30 | H14: =COUNTIF(D3:D202,1) -> 30 | I14: =COUNTIF(D3:D202,2) -> 29 | J14: =COUNTIF(D3:D202,3) -> 18 | K14: =COUNTIF(D3:D202,4) -> 23 | L14: =COUNTIF(D3:D202,5) -> 13 | M14: =COUNTIF(D3:D202,6) -> 13 | N14: =COUNTIF(D3:D202,7) -> 14 | O14: =COUNTIF(D3:D202,8) -> 14 | P14: =COUNTIF(D3:D202,9) -> 16
A15: 50.79 | B15: 50790 | C15: 5 | D15: 0 | F15: Sample % | G15: =G14/$B$1 -> 0.15 | H15: 0.15 | I15: 0.145 | J15: 0.09 | K15: 0.115 | L15: 0.065 | M15: 0.065 | N15: 0.07 | O15: 0.07 | P15: 0.08
A16: 61.41 | B16: 61410 | C16: 6 | D16: 1 | F16: Benford % | G16: 0.1196792686 | H16: 0.1138901034 | I16: 0.108821499 | J16: 0.1043295602 | K16: 0.1003082023 | L16: 0.0966772358 | M16: 0.09337473578 | N16: 0.09035198927 | O16: 0.08757005358 | P16: 0.08499735206
A17: 29.55 | B17: 29550 | C17: 2 | D17: 9 | F17: Absolute Deviation | G17: =ABS(G16-G15) -> 0.0303207314 | H17: 0.03610989659 | I17: 0.03617850099 | J17: 0.01432956023 | K17: 0.01469179773 | L17: 0.0316772358 | M17: 0.02837473578 | N17: 0.02035198927 | O17: 0.01757005358 | P17: 0.004997352058
A18: 62.59 | B18: 62590 | C18: 6 | D18: 2 | F18: Mean Absolute Deviation | G18: =AVERAGE(G17:P17) -> 0.02346018534
A19: 77.93 | B19: 77930 | C19: 7 | D19: 7 | F19: Standard Deviation | G19: =(G16*(1-G16)/B1)^(1/2) -> 0.02295170378 | H19: =(H16*(1-H16)/B1)^(1/2) -> 0.02246320856 | I19: =(I16*(1-I16)/B1)^(1/2) -> 0.0220203747 | J19: =(J16*(1-J16)/B1)^(1/2) -> 0.02161537683 | K19: =(K16*(1-K16)/B1)^(1/2) -> 0.02124222997 | L19: =(L16*(1-L16)/B1)^(1/2) -> 0.02089626137 | M19: =(M16*(1-M16)/B1)^(1/2) -> 0.02057375689 | N19: =(N16*(1-N16)/B1)^(1/2) -> 0.02027171765 | O19: =(O16*(1-O16)/B1)^(1/2) -> 0.01998768862 | P19: =(P16*(1-P16)/B1)^(1/2) -> 0.01971963516
A20: 28.13 | B20: 28130 | C20: 2 | D20: 8 | F20: Z-Statistic | G20: =(G17-1/(2*B1))/G19 -> 1.212142317 | H20: =(H17-1/(2*B1))/H19 -> 1.496219763 | I20: =(I17-1/(2*B1))/I19 -> 1.52942452 | J20: =(J17-1/(2*B1))/J19 -> 0.5472752256 | K20: =(K17-1/(2*B1))/K19 -> 0.5739415188 | L20: =(L17-1/(2*B1))/L19 -> 1.396289761 | M20: =(M17-1/(2*B1))/M19 -> 1.257657312 | N20: =(N17-1/(2*B1))/N19 -> 0.8806352563 | O20: =(O17-1/(2*B1))/O19 -> 0.7539667974 | P20: =(P17-1/(2*B1))/P19 -> 0.1266429139
A21: 60.23 | B21: 60230 | C21: 6 | D21: 0 | F21: Chi-Square Test | G21: 12.53676365
A22: 47.25 | B22: 47250 | C22: 4 | D22: 7 | F22: P-Value | G22: =(1-_xlfn.NORM.S.DIST(G20,TRUE))*2 -> 0.2254579074 | H22: 0.134596396 | I22: 0.1261592377 | J22: 0.5841896616 | K22: 0.5660073761 | L22: 0.1626272558 | M22: 0.2085157168 | N22: 0.3785152697 | O22: 0.450869159 | P22: =(1-_xlfn.NORM.S.DIST(P20,TRUE)) -> 0.449611515
A23: 54.69 | B23: 54690 | C23: 5 | D23: 4
A24: 55.51 | B24: 55510 | C24: 5 | D24: 5
A25: 60.23 | B25: 60230 | C25: 6 | D25: 0
A26: 56.69 | B26: 56690 | C26: 5 | D26: 6 | F26: Note: Italics indicates significance at 5%; bold italics indicates significance at 1%.
A27: 62.59 | B27: 62590 | C27: 6 | D27: 2
A28: 52.05 | B28: 52050 | C28: 5 | D28: 2
A29: 17.05 | B29: 17050 | C29: 1 | D29: 7
A30: 41.63 | B30: 41630 | C30: 4 | D30: 1
A31: 64.95 | B31: 64950 | C31: 6 | D31: 4
A32: 37.81 | B32: 37810 | C32: 3 | D32: 7
A33: 30.97 | B33: 30970 | C33: 3 | D33: 0
A34: 12.85 | B34: 12850 | C34: 1 | D34: 2
A35: 10.85 | B35: =IFERROR(ABS(A35*1000),"-") -> 10850 | C35: =IFERROR(LEFT(B35,1),"-") -> 1 | D35: =IFERROR(LEFT(B35,2)-10*C35,"-") -> 0
A36: 44.61 | B36: 44610 | C36: 4 | D36: 4
A37: 30.97 | B37: 30970 | C37: 3 | D37: 0
A38: 62.59 | B38: 62590 | C38: 6 | D38: 2
A39: 53.15 | B39: 53150 | C39: 5 | D39: 3
A40: 57.87 | B40: 57870 | C40: 5 | D40: 7
A41: 59.05 | B41: 59050 | C41: 5 | D41: 9
A42: 53.15 | B42: 53150 | C42: 5 | D42: 3
A43: 41.35 | B43: 41350 | C43: 4 | D43: 1
A44: 64.95 | B44: 64950 | C44: 6 | D44: 4
A45: 51.97 | B45: 51970 | C45: 5 | D45: 1
A46: 67.31 | B46: 67310 | C46: 6 | D46: 7
A47: 72.03 | B47: 72030 | C47: 7 | D47: 2
A48: 148.85 | B48: 148850 | C48: 1 | D48: 4
A49: 72.03 | B49: 72030 | C49: 7 | D49: 2
A50: 67.31 | B50: 67310 | C50: 6 | D50: 7
A51: 51.89 | B51: 51890 | C51: 5 | D51: 1
A52: 401.65 | B52: 401650 | C52: 4 | D52: 0
A53: 143.85 | B53: 143850 | C53: 1 | D53: 4
A54: 69.67 | B54: 69670 | C54: 6 | D54: 9
A55: 10.85 | B55: 10850 | C55: 1 | D55: 0
A56: 54.33 | B56: 54330 | C56: 5 | D56: 4
A57: 60.23 | B57: 60230 | C57: 6 | D57: 0
A58: 69.67 | B58: 69670 | C58: 6 | D58: 9
A59: 56.69 | B59: 56690 | C59: 5 | D59: 6
A60: 22.77 | B60: 22770 | C60: 2 | D60: 2
A61: 57.87 | B61: 57870 | C61: 5 | D61: 7
A62: 55.51 | B62: 55510 | C62: 5 | D62: 5
A63: 54.33 | B63: 54330 | C63: 5 | D63: 4
A64: 48.43 | B64: 48430 | C64: 4 | D64: 8
A65: 59.05 | B65: 59050 | C65: 5 | D65: 9
A66: 21.77 | B66: 21770 | C66: 2 | D66: 1
A67: 22.28 | B67: =IFERROR(ABS(A67*1000),"-") -> 22280 | C67: =IFERROR(LEFT(B67,1),"-") -> 2 | D67: =IFERROR(LEFT(B67,2)-10*C67,"-") -> 2
A68: 21.77 | B68: 21770 | C68: 2 | D68: 1
A69: 22.05 | B69: 22050 | C69: 2 | D69: 2
A70: 18.77 | B70: 18770 | C70: 1 | D70: 8
A71: 60.82 | B71: 60820 | C71: 6 | D71: 0
A72: 38.45 | B72: 38450 | C72: 3 | D72: 8
A73: 40.05 | B73: 40050 | C73: 4 | D73: 0
A74: 67.65 | B74: 67650 | C74: 6 | D74: 7
A75: 55.65 | B75: 55650 | C75: 5 | D75: 5
A76: 15.51 | B76: 15510 | C76: 1 | D76: 5
A77: 15.05 | B77: 15050 | C77: 1 | D77: 5
A78: 12.05 | B78: 12050 | C78: 1 | D78: 2
A79: 12.85 | B79: 12850 | C79: 1 | D79: 2
A80: 22.85 | B80: 22850 | C80: 2 | D80: 2
A81: 15.17 | B81: 15170 | C81: 1 | D81: 5
A82: 13.85 | B82: 13850 | C82: 1 | D82: 3
A83: 11.85 | B83: 11850 | C83: 1 | D83: 1
A84: 18.01 | B84: 18010 | C84: 1 | D84: 8
A85: 21.33 | B85: 21330 | C85: 2 | D85: 1
A86: 20.53 | B86: 20530 | C86: 2 | D86: 0
A87: 110.63 | B87: 110630 | C87: 1 | D87: 1
A88: 92.89 | B88: 92890 | C88: 9 | D88: 2
A89: 141.93 | B89: 141930 | C89: 1 | D89: 4
A90: 223.89 | B90: 223890 | C90: 2 | D90: 2
A91: 110.63 | B91: 110630 | C91: 1 | D91: 1
A92: 40.01 | B92: 40010 | C92: 4 | D92: 0
A93: 141.85 | B93: 141850 | C93: 1 | D93: 4
A94: 40.01 | B94: 40010 | C94: 4 | D94: 0
A95: 71.05 | B95: 71050 | C95: 7 | D95: 1
A96: 106.05 | B96: 106050 | C96: 1 | D96: 0
A97: 63.77 | B97: 63770 | C97: 6 | D97: 3
A98: 131.35 | B98: 131350 | C98: 1 | D98: 3
A99: 37.05 | B99: =IFERROR(ABS(A99*1000),"-") -> 37050 | C99: =IFERROR(LEFT(B99,1),"-") -> 3 | D99: =IFERROR(LEFT(B99,2)-10*C99,"-") -> 7
A100: 35.49 | B100: 35490 | C100: 3 | D100: 5
A101: 105.37 | B101: 105370 | C101: 1 | D101: 0
A102: 69.67 | B102: 69670 | C102: 6 | D102: 9
A103: 57.87 | B103: 57870 | C103: 5 | D103: 7
A104: 27.05 | B104: 27050 | C104: 2 | D104: 7
A105: 172.61 | B105: 172610 | C105: 1 | D105: 7
A106: 50.57 | B106: 50570 | C106: 5 | D106: 0
A107: 73.21 | B107: 73210 | C107: 7 | D107: 3
A108: 49.61 | B108: 49610 | C108: 4 | D108: 9
A109: 31.91 | B109: 31910 | C109: 3 | D109: 1
A110: 20.33 | B110: 20330 | C110: 2 | D110: 0
A111: 61.41 | B111: 61410 | C111: 6 | D111: 1
A112: 63.77 | B112: 63770 | C112: 6 | D112: 3
A113: 48.43 | B113: 48430 | C113: 4 | D113: 8
A114: 19.49 | B114: 19490 | C114: 1 | D114: 9
A115: 12.42 | B115: 12420 | C115: 1 | D115: 2
A116: 12.42 | B116: 12420 | C116: 1 | D116: 2
A117: 12.05 | B117: 12050 | C117: 1 | D117: 2
A118: 14.05 | B118: 14050 | C118: 1 | D118: 4
A119: 94.97 | B119: 94970 | C119: 9 | D119: 4
A120: 88.55 | B120: 88550 | C120: 8 | D120: 8
A121: 60.23 | B121: 60230 | C121: 6 | D121: 0
A122: 81.47 | B122: 81470 | C122: 8 | D122: 1
A123: 60.23 | B123: 60230 | C123: 6 | D123: 0
A124: 60.23 | B124: 60230 | C124: 6 | D124: 0
A125: 435.09 | B125: 435090 | C125: 4 | D125: 3
A126: 68.09 | B126: 68090 | C126: 6 | D126: 8
A127: 24.65 | B127: 24650 | C127: 2 | D127: 4
A128: 56.45 | B128: 56450 | C128: 5 | D128: 6
A129: 56.45 | B129: 56450 | C129: 5 | D129: 6
A130: 56.45 | B130: 56450 | C130: 5 | D130: 6
A131: 56.45 | B131: =IFERROR(ABS(A131*1000),"-") -> 56450 | C131: =IFERROR(LEFT(B131,1),"-") -> 5 | D131: =IFERROR(LEFT(B131,2)-10*C131,"-") -> 6
A132: 63.77 | B132: 63770 | C132: 6 | D132: 3
A133: 16.01 | B133: 16010 | C133: 1 | D133: 6
A134: 29.97 | B134: 29970 | C134: 2 | D134: 9
A135: 41.35 | B135: 41350 | C135: 4 | D135: 1
A136: 59.05 | B136: 59050 | C136: 5 | D136: 9
A137: 51.97 | B137: 51970 | C137: 5 | D137: 1
A138: 63.77 | B138: 63770 | C138: 6 | D138: 3
A139: 21.41 | B139: 21410 | C139: 2 | D139: 1
A140: 49.73 | B140: 49730 | C140: 4 | D140: 9
A141: 195.89 | B141: 195890 | C141: 1 | D141: 9
A142: 217.13 | B142: 217130 | C142: 2 | D142: 1
A143: 828.05 | B143: 828050 | C143: 8 | D143: 2
A144: 129.13 | B144: 129130 | C144: 1 | D144: 2
A145: 25.05 | B145: 25050 | C145: 2 | D145: 5
A146: 50.41 | B146: 50410 | C146: 5 | D146: 0
A147: 114.33 | B147: 114330 | C147: 1 | D147: 1
A148: 42.61 | B148: 42610 | C148: 4 | D148: 2
A149: 51.25 | B149: 51250 | C149: 5 | D149: 1
A150: 323.05 | B150: 323050 | C150: 3 | D150: 2
A151: 43.25 | B151: 43250 | C151: 4 | D151: 3
A152: 35.21 | B152: 35210 | C152: 3 | D152: 5
A153: 115.25 | B153: 115250 | C153: 1 | D153: 1
A154: 15.37 | B154: 15370 | C154: 1 | D154: 5
A155: 13.85 | B155: 13850 | C155: 1 | D155: 3
A156: 73.77 | B156: 73770 | C156: 7 | D156: 3
A157: 94.97 | B157: 94970 | C157: 9 | D157: 4
A158: 183.65 | B158: 183650 | C158: 1 | D158: 8
A159: 241.05 | B159: 241050 | C159: 2 | D159: 4
A160: 166.37 | B160: 166370 | C160: 1 | D160: 6
A161: 27.05 | B161: 27050 | C161: 2 | D161: 7
A162: 142.93 | B162: 142930 | C162: 1 | D162: 4
A163: 88.65 | B163: =IFERROR(ABS(A163*1000),"-") -> 88650 | C163: =IFERROR(LEFT(B163,1),"-") -> 8 | D163: =IFERROR(LEFT(B163,2)-10*C163,"-") -> 8
A164: 116.17 | B164: 116170 | C164: 1 | D164: 1
A165: 16.05 | B165: 16050 | C165: 1 | D165: 6
A166: 62.97 | B166: 62970 | C166: 6 | D166: 2
A167: 19.49 | B167: 19490 | C167: 1 | D167: 9
A168: 252.65 | B168: 252650 | C168: 2 | D168: 5
A169: 115.09 | B169: 115090 | C169: 1 | D169: 1
A170: 90.89 | B170: 90890 | C170: 9 | D170: 0
A171: 11.93 | B171: 11930 | C171: 1 | D171: 1
A172: 100.29 | B172: 100290 | C172: 1 | D172: 0
A173: 128.21 | B173: 128210 | C173: 1 | D173: 2
A174: 28.89 | B174: 28890 | C174: 2 | D174: 8
A175: 42.69 | B175: 42690 | C175: 4 | D175: 2
A176: 26.89 | B176: 26890 | C176: 2 | D176: 6
A177: 197.04 | B177: 197040 | C177: 1 | D177: 9
A178: 63.97 | B178: 63970 | C178: 6 | D178: 3
A179: 14.05 | B179: 14050 | C179: 1 | D179: 4
A180: 107.69 | B180: 107690 | C180: 1 | D180: 0
A181: 53.33 | B181: 53330 | C181: 5 | D181: 3
A182: 20.33 | B182: 20330 | C182: 2 | D182: 0
A183: 34.21 | B183: 34210 | C183: 3 | D183: 4
A184: 32.05 | B184: 32050 | C184: 3 | D184: 2
A185: 31.55 | B185: 31550 | C185: 3 | D185: 1
A186: 50.45 | B186: 50450 | C186: 5 | D186: 0
A187: 36.77 | B187: 36770 | C187: 3 | D187: 6
A188: 92.81 | B188: 92810 | C188: 9 | D188: 2
A189: 228.11 | B189: 228110 | C189: 2 | D189: 2
A190: 239.97 | B190: 239970 | C190: 2 | D190: 3
A191: 46.05 | B191: 46050 | C191: 4 | D191: 6
A192: 267.61 | B192: 267610 | C192: 2 | D192: 6
A193: 140.61 | B193: 140610 | C193: 1 | D193: 4
A194: 63.75 | B194: 63750 | C194: 6 | D194: 3
A195: 113.09 | B195: =IFERROR(ABS(A195*1000),"-") -> 113090 | C195: =IFERROR(LEFT(B195,1),"-") -> 1 | D195: =IFERROR(LEFT(B195,2)-10*C195,"-") -> 1
A196: 110.05 | B196: 110050 | C196: 1 | D196: 1
A197: 122.65 | B197: 122650 | C197: 1 | D197: 2
A198: 50.05 | B198: 50050 | C198: 5 | D198: 0
A199: 65.05 | B199: 65050 | C199: 6 | D199: 5
A200: 20.05 | B200: 20050 | C200: 2 | D200: 0
... 2 more rows

Sheet Graphs
